fUST/lending_fUST_20240119
["ID","MTS","AMOUNT","RATE_DAILY","PERIOD"]
[312119179,1705647041756,-500.0,0.00032876,2]
[312119180,1705647041766,-500.0,0.00032876,2]
[312119181,1705647041775,-500.0,0.00032876,2]
[312119182,1705647041784,-500.0,0.00032876,2]
[312119183,1705647041794,-500.0,0.00032876,2]
[312119184,1705647041804,-500.0,0.00032876,2]
[312119185,1705647041813,-3105.32,0.00032876,2]
[312119186,1705647041823,-500.0,0.00032876,2]
[312119187,1705647041833,-500.0,0.00032876,2]
[312119188,1705647041842,-508.59956434,0.00032876,2]
[312119189,1705647041852,-500.0,0.00032876,2]
[312119190,1705647041863,-500.0,0.00032876,2]
[312119191,1705647041873,-500.0,0.00032876,2]
[312119192,1705647041885,-500.0,0.00032876,2]
[312119193,1705647041894,-187.46119069,0.00032876,2]
[312119194,1705647041905,-500.0,0.00032876,2]
[312119195,1705647041915,-300.0,0.00032876,2]
[312119196,1705647041924,-731.41,0.00032876,2]
[312119197,1705647041932,-500.0,0.00032876,2]
[312119198,1705647041942,-500.0,0.00032876,2]
[312119199,1705647041951,-500.0,0.00032876,2]
[312119200,1705647041961,-500.0,0.00032876,2]
[312119201,1705647041971,-500.0,0.00032876,2]
[312119202,1705647041980,-502.83768509,0.00032876,2]
[312119203,1705647041990,-500.0,0.00032876,2]
[312119204,1705647041998,-595.41759042,0.00032876,2]
[312119205,1705647042079,-500.0,0.00032876,2]
[312119206,1705647042089,-633.835,0.00032876,2]
[312119207,1705647042098,-504.88440796,0.00032876,2]
[312119208,1705647042107,-500.0,0.00032876,2]
[312119209,1705647042116,-500.0,0.00032876,2]
[312119210,1705647042125,-500.0,0.00032876,2]
[312119211,1705647042134,-500.0,0.00032876,7]
[312119212,1705647042144,-500.0,0.00032876,7]
[312119213,1705647042155,-570.7082992,0.00032876,7]
[312119214,1705647042164,-500.0,0.00032876,7]
[312119215,1705647042173,-500.0,0.00032876,7]
[312119216,1705647042182,-404.75419784,0.00032876,7]
[312119217,1705647042191,-500.0,0.00032876,2]
[312119218,1705647042200,-500.0,0.00032876,2]
[312119219,1705647042209,-500.0,0.00032876,2]
[312119220,1705647042219,-678.0,0.00032879,30]
[312119221,1705647042228,-678.0,0.00032889,30]
[312119222,1705647042237,-154.9690062,0.00032896,10]
[312119223,1705647042246,-554.91533247,0.00032896,4]
[312119224,1705647042255,-1260.73648492,0.00032897,4]
[312119225,1705647042264,-841.33530867,0.00032897,4]
[312119226,1705647042273,-5914.32694762,0.00032897,4]
[312119227,1705647042282,-155.28868277,0.00032898,4]
[312119228,1705647042292,-155.17751515,0.00032898,4]
[312119229,1705647042301,-403.08302843,0.00032898,4]
[312119230,1705647042311,-561.15323628,0.00032898,4]
[312119231,1705647042320,-154.98450155,0.00032898,4]
[312119232,1705647042331,-162.97782864,0.00032898,4]
[312119233,1705647042340,-181.79050164,0.00032898,4]
[312119234,1705647042350,-2340.54263458,0.00032898,4]
[312119235,1705647042359,-7945.19667066,0.00032898,4]
[312119236,1705647042369,-304.88166188,0.00032899,7]
[312119237,1705647042378,-277.60796575,0.00032899,7]
[312119238,1705647042388,-369.93851047,0.00032899,7]
[312119239,1705647042399,-256971.36908852,0.000329,2]
[312119247,1705647042483,-1002.59486991,0.000329,2]
[312119249,1705647042494,-1738.95791401,0.000329,2]
[312119252,1705647042525,-500.0,0.00032876,2]
[312119253,1705647042534,-2166.48487157,0.000329,2]
[312119256,1705647042581,-1767.96722964,0.000329,2]
[312119257,1705647043112,-500.0,0.00032876,2]
[312119258,1705647043121,-1494.10534524,0.000329,2]
[312119259,1705647043132,-1469665.18769376,0.000329,2]
[312119260,1705647043141,-331.265426,0.000329,2]
[312119261,1705647043151,-331.265426,0.000329,2]
[312119262,1705647043160,-151.0,0.000329,2]
[312119263,1705647043169,-151.0,0.000329,2]
[312119264,1705647043178,-151.0,0.000329,2]
[312119265,1705647043187,-180.813176,0.000329,2]
[312119266,1705647043196,-180.813176,0.000329,2]
[312119267,1705647043205,-6762.26543772,0.00033,4]
[312119268,1705647043215,-386.32476631,0.00033,2]
[312119269,1705647043224,-170.0,0.00033,2]
[312119270,1705647043232,-172.0,0.00033,2]
[312119271,1705647043242,-156.84747797,0.0003306,7]
[312119272,1705647043251,-306.63663,0.0003309,2]
[312119273,1705647043260,-154.12939898,0.00033091,7]
[312119274,1705647043269,-678.0,0.0003312,30]
[312119275,1705647043278,-678.0,0.0003313,30]
[312119276,1705647043287,-678.0,0.0003314,30]
[312119277,1705647043296,-500.91282911,0.0003315,3]
[312119278,1705647043306,-500.0,0.0003315,3]
[312119279,1705647043315,-507.36376259,0.0003315,3]
[312119280,1705647043325,-500.0,0.0003315,3]
[312119281,1705647043334,-500.0,0.0003315,3]
[312119282,1705647043344,-500.0,0.0003315,3]
[312119283,1705647043353,-500.0,0.0003315,3]
[312119284,1705647043361,-500.0,0.0003315,3]
[312119285,1705647043370,-505.39441684,0.0003315,3]
[312119286,1705647043379,-500.0,0.0003315,3]
[312119287,1705647043388,-500.0,0.0003315,3]
[312119288,1705647043397,-500.0,0.0003315,3]
[312119289,1705647043407,-521.3858914,0.0003315,3]
[312119290,1705647043415,-500.0,0.0003315,3]
[312119291,1705647043424,-500.0,0.0003315,3]
[312119292,1705647043433,-500.0,0.0003315,3]
[312119293,1705647043442,-500.0,0.0003315,3]
[312119294,1705647043452,-150.0,0.0003315,3]
[312119296,1705647043462,-500.0,0.0003315,3]
[312119298,1705647043471,-500.0,0.0003315,3]
[312119300,1705647043480,-500.0,0.0003315,3]
[312119302,1705647043489,-500.0,0.0003315,3]
[312119303,1705647043498,-500.0,0.0003315,3]
[312119305,1705647043507,-513.7826788,0.0003315,3]
[312119308,1705647043517,-500.0,0.0003315,3]
[312119310,1705647043526,-500.0,0.0003315,3]
[312119312,1705647043535,-500.0,0.0003315,3]
[312119314,1705647043545,-500.0,0.0003315,3]
[312119315,1705647043554,-500.0,0.0003315,3]
[312119317,1705647043564,-505.22432973,0.0003315,3]
[312119319,1705647043573,-500.0,0.0003315,3]
[312119321,1705647043582,-500.0,0.0003315,3]
[312119323,1705647043591,-500.0,0.0003315,3]
[312119325,1705647043600,-404.49007753,0.0003315,3]
[312119327,1705647043610,-500.0,0.0003315,3]
[312119329,1705647043619,-1000.0,0.0003315,2]
[312119331,1705647043628,-500.0,0.0003315,3]
[312119333,1705647043637,-768.28,0.0003315,3]
[312119335,1705647043647,-212.7852503,0.0003315,3]
[312119336,1705647043659,-500.0,0.0003315,3]
[312119338,1705647043670,-500.0,0.0003315,3]
[312119340,1705647043679,-500.0,0.0003315,3]
[312119342,1705647043690,-500.0,0.0003315,3]
[312119344,1705647043700,-500.0,0.0003315,3]
[312119345,1705647043709,-500.0,0.0003315,3]
[312119346,1705647043719,-504.00329423,0.0003315,3]
[312119347,1705647043729,-502.47371861,0.0003315,3]
[312119348,1705647043739,-502.1634203,0.0003315,3]
[312119349,1705647043749,-500.0,0.0003315,3]
[312119350,1705647043759,-500.0,0.0003315,3]
[312119351,1705647043769,-503.71487664,0.0003315,3]
[312119352,1705647043779,-500.0,0.0003315,3]
[312119353,1705647043790,-500.0,0.0003315,3]
[312119354,1705647043799,-500.0,0.0003315,3]
[312119355,1705647043808,-502.95572955,0.0003315,3]
[312119356,1705647043818,-500.0,0.0003315,3]
[312119357,1705647043827,-500.0,0.0003315,2]
[312119358,1705647043836,-499.99997079,0.0003315,3]
[312119360,1705647043848,-500.0,0.0003315,3]
[312119362,1705647043858,-500.0,0.0003315,3]
[312119365,1705647043869,-1002.64129724,0.0003315,2]
[312119367,1705647043879,-500.0,0.0003315,3]
[312119368,1705647043891,-500.0,0.0003315,3]
[312119369,1705647043903,-500.0,0.0003315,3]
[312119370,1705647043912,-500.0,0.0003315,3]
[312119371,1705647043921,-491.60142791,0.0003315,3]
[312119372,1705647043931,-500.0,0.0003315,3]
[312119373,1705647043940,-500.0,0.0003315,3]
[312119374,1705647043950,-500.0,0.0003315,3]
[312119375,1705647043960,-500.0,0.0003315,3]
[312119376,1705647043970,-500.0,0.0003315,3]
[312119377,1705647043979,-500.0,0.0003315,3]
[312119378,1705647043989,-500.0,0.0003315,3]
[312119379,1705647043998,-202.65450831,0.0003315,3]
[312119380,1705647044008,-500.0,0.0003315,3]
[312119381,1705647044017,-504.67298462,0.0003315,3]
[312119382,1705647044027,-500.0,0.0003315,3]
[312119383,1705647044036,-500.0,0.0003315,3]
[312119384,1705647044045,-500.0,0.0003315,3]
[312119385,1705647044055,-291.68044868,0.0003315,3]
[312119386,1705647044064,-500.0,0.0003315,3]
[312119387,1705647044074,-500.0,0.0003315,3]
[312119388,1705647044083,-500.0,0.0003315,3]
[312119389,1705647044092,-500.0,0.0003315,3]
[312119390,1705647044102,-500.0,0.0003315,3]
[312119391,1705647044111,-500.0,0.0003315,3]
[312119392,1705647044121,-500.0,0.0003315,3]
[312119393,1705647044130,-500.0,0.0003315,3]
[312119394,1705647044140,-507.61838618,0.0003315,3]
[312119395,1705647044149,-501.49907098,0.0003315,3]
[312119396,1705647044160,-507.84931594,0.0003315,3]
[312119397,1705647044170,-505.36171351,0.0003315,3]
[312119398,1705647044179,-500.0,0.0003315,3]
[312119399,1705647044189,-2019.68,0.0003315,3]
[312119400,1705647044198,-500.0,0.0003315,3]
[312119401,1705647044207,-754.42,0.0003315,3]
[312119402,1705647044217,-500.0,0.0003315,3]
[312119403,1705647044227,-500.0,0.0003315,3]
[312119404,1705647044237,-500.0,0.0003315,3]
[312119405,1705647044247,-500.0,0.0003315,3]
[312119406,1705647044256,-500.0,0.0003315,3]
[312119407,1705647044347,-500.0,0.0003315,3]
[312119408,1705647044358,-1468.24,0.0003315,3]
[312119409,1705647044368,-830.03,0.0003315,3]
[312119410,1705647044377,-500.0,0.0003315,3]
[312119411,1705647044386,-500.0,0.0003315,3]
[312119412,1705647044396,-482.66606596,0.0003315,3]
[312119413,1705647044407,-500.0,0.0003315,3]
[312119414,1705647044418,-512.50623965,0.0003315,3]
[312119415,1705647044427,-500.0,0.0003315,3]
[312119416,1705647044436,-502.10655044,0.0003315,5]
[312119417,1705647044446,-500.0,0.0003315,3]
[312119418,1705647044455,-500.0,0.0003315,3]
[312119419,1705647044465,-500.0,0.0003315,3]
[312119420,1705647044474,-500.0,0.0003315,3]
[312119421,1705647044484,-916.7,0.0003315,3]
[312119422,1705647044493,-501.48152421,0.0003315,3]
[312119423,1705647044502,-500.0,0.0003315,3]
[312119424,1705647044512,-500.0,0.0003315,3]
[312119425,1705647044521,-501.52733397,0.0003315,3]
[312119426,1705647044531,-505.27819913,0.0003315,3]
[312119427,1705647044540,-585.9606387,0.0003315,3]
[312119428,1705647044550,-504.60443629,0.0003315,3]
[312119429,1705647044560,-369.67469477,0.0003315,3]
[312119430,1705647044570,-500.0,0.0003315,3]
[312119431,1705647044582,-546.35,0.0003315,3]
[312119432,1705647044592,-518.51183488,0.0003315,3]
[312119433,1705647044602,-500.0,0.0003315,3]
[312119434,1705647044612,-501.72399123,0.0003315,3]
[312119435,1705647044622,-2693.85,0.0003315,3]
[312119436,1705647044632,-500.0,0.0003315,3]
[312119437,1705647044642,-1145.1,0.0003315,3]
[312119438,1705647044653,-1172.42,0.0003315,3]
[312119439,1705647044663,-500.0,0.0003315,3]
[312119440,1705647044673,-1066.31,0.0003315,3]
[312119441,1705647044684,-500.0,0.0003315,3]
[312119442,1705647044693,-500.0,0.0003315,3]
[312119443,1705647044703,-500.0,0.0003315,3]
[312119444,1705647044712,-8928.72,0.0003315,3]
[312119445,1705647044722,-500.0,0.0003315,3]
[312119446,1705647044732,-13936.93,0.0003315,3]
[312119447,1705647044741,-500.0,0.0003315,3]
[312119448,1705647044751,-464.34796433,0.0003315,3]
[312119449,1705647044761,-500.0,0.0003315,3]
[312119450,1705647044770,-442.01048546,0.0003315,3]
[312119451,1705647044779,-1497.72,0.0003315,3]
[312119452,1705647044789,-1325.8,0.0003315,3]
[312119453,1705647044799,-496.32547003,0.0003315,3]
[312119454,1705647044808,-500.0,0.0003315,3]
[312119455,1705647044817,-500.0,0.0003315,3]
[312119456,1705647044827,-500.0,0.0003315,3]
[312119457,1705647044837,-500.0,0.0003315,3]
[312119458,1705647044846,-500.0,0.0003315,3]
[312119459,1705647044856,-792.02,0.0003315,3]
[312119460,1705647044869,-523.89688111,0.0003315,2]
[312119461,1705647044878,-4387.64,0.0003315,3]
[312119462,1705647044887,-500.0,0.0003315,3]
[312119463,1705647044897,-518.27555561,0.0003315,3]
[312119464,1705647044909,-187.93193822,0.0003315,3]
[312119465,1705647044918,-500.0,0.0003315,3]
[312119466,1705647044927,-500.0,0.0003315,3]
[312119467,1705647044938,-500.0,0.0003315,3]
[312119468,1705647044947,-500.0,0.0003315,3]
[312119469,1705647044956,-500.0,0.0003315,3]
[312119470,1705647044965,-271.81304611,0.0003315,3]
[312119471,1705647044974,-500.0,0.0003315,3]
[312119472,1705647044983,-500.0,0.0003315,3]
[312119473,1705647044992,-500.0,0.0003315,3]
[312119474,1705647045001,-612.47,0.0003315,3]
[312119475,1705647045010,-500.0,0.0003315,3]
[312119476,1705647045022,-500.0,0.0003315,3]
[312119477,1705647045032,-2579.58,0.0003315,3]
[312119478,1705647045041,-500.0,0.0003315,3]
[312119479,1705647045050,-500.0,0.0003315,3]
[312119480,1705647045059,-507.01155118,0.0003315,3]
[312119481,1705647045068,-500.0,0.0003315,3]
[312119482,1705647045077,-500.0,0.0003315,3]
[312119483,1705647045087,-500.0,0.0003315,3]
[312119484,1705647045096,-500.0,0.0003315,3]
[312119485,1705647045105,-500.0,0.0003315,3]
[312119486,1705647045114,-500.0,0.0003315,3]
[312119487,1705647045123,-500.0,0.0003315,3]
[312119488,1705647045133,-500.0,0.0003315,14]
[312119489,1705647045142,-500.0,0.0003315,3]
[312119490,1705647045153,-500.0,0.0003315,3]
[312119491,1705647045162,-500.0,0.0003315,3]
[312119492,1705647045171,-554.58,0.0003315,3]
[312119493,1705647045180,-500.0,0.0003315,3]
[312119494,1705647045189,-2773.43,0.0003315,3]
[312119495,1705647045199,-500.0,0.0003315,3]
[312119496,1705647045208,-500.0,0.0003315,3]
[312119497,1705647045218,-500.0,0.0003315,3]
[312119498,1705647045228,-500.0,0.0003315,3]
[312119499,1705647045238,-500.0,0.0003315,3]
[312119500,1705647045248,-230.92803459,0.0003315,3]
[312119501,1705647045258,-3105.32,0.0003315,3]
[312119502,1705647045267,-500.0,0.0003315,3]
[312119503,1705647045276,-500.0,0.0003315,3]
[312119504,1705647045285,-500.0,0.0003315,3]
[312119505,1705647045294,-500.0,0.0003315,3]
[312119506,1705647045303,-500.0,0.0003315,3]
[312119507,1705647045312,-500.0,0.0003315,3]
[312119508,1705647045321,-500.0,0.0003315,3]
[312119509,1705647045330,-731.41,0.0003315,3]
[312119510,1705647045340,-500.0,0.0003315,2]
[312119511,1705647045350,-500.0,0.0003315,3]
[312119512,1705647045358,-500.0,0.0003315,3]
[312119513,1705647045368,-500.81551736,0.0003315,2]
[312119514,1705647045377,-500.0,0.0003315,3]
[312119515,1705647045387,-500.0,0.0003315,3]
[312119516,1705647045396,-500.0,0.0003315,3]
[312119517,1705647045406,-500.0,0.0003315,3]
[312119518,1705647045415,-500.0,0.0003315,3]
[312119519,1705647045423,-500.0,0.0003315,3]
[312119520,1705647045433,-500.0,0.0003315,3]
[312119521,1705647045442,-500.41281024,0.0003315,3]
[312119522,1705647045451,-500.0,0.0003315,3]
[312119523,1705647045460,-267.991024,0.0003315,2]
[312119525,1705647045470,-151.0,0.0003315,2]
[312119526,1705647045479,-151.0,0.0003315,2]
[312119527,1705647045488,-180.813176,0.0003315,2]
[312119528,1705647045497,-180.813176,0.0003315,2]
[312119529,1705647045506,-500.0,0.00033424,3]
[312119530,1705647045515,-496.21513945,0.00033424,3]
[312119531,1705647045524,-500.0,0.00033424,3]
[312119532,1705647045533,-500.0,0.00033424,3]
[312119533,1705647045542,-500.0,0.00033424,3]
[312119534,1705647045551,-500.0,0.00033424,3]
[312119535,1705647045560,-500.0,0.00033424,3]
[312119536,1705647045570,-500.0,0.00033424,3]
[312119537,1705647045579,-500.0,0.00033424,3]
[312119538,1705647045588,-500.0,0.00033424,3]
[312119539,1705647045597,-492.00719133,0.00033424,3]
[312119540,1705647045606,-500.0,0.00033424,3]
[312119541,1705647045616,-500.0,0.00033424,3]
[312119542,1705647045626,-511.35001389,0.00033424,3]
[312119543,1705647045635,-500.0,0.00033424,3]
[312119544,1705647045644,-500.0,0.00033424,3]
[312119545,1705647045654,-502.99620188,0.00033424,3]
[312119546,1705647045664,-500.0,0.00033424,3]
[312119547,1705647045673,-505.34721411,0.00033424,3]
[312119548,1705647045683,-500.0,0.00033424,3]
[312119549,1705647045693,-768.28,0.00033424,3]
[312119550,1705647045702,-500.0,0.00033424,3]
[312119551,1705647045711,-500.0,0.00033424,3]
[312119552,1705647045721,-483.62010768,0.00033424,3]
[312119553,1705647045730,-500.0,0.00033424,3]
[312119554,1705647045740,-500.0,0.00033424,3]
[312119555,1705647045749,-500.0,0.00033424,3]
[312119556,1705647045758,-515.3468188,0.00033424,3]
[312119557,1705647045768,-399.71925343,0.00033424,3]
[312119558,1705647045777,-500.0,0.00033424,3]
[312119559,1705647045787,-286.46582311,0.00033424,3]
[312119560,1705647045796,-500.0,0.00033424,2]
[312119561,1705647045805,-500.0,0.00033424,3]
[312119562,1705647045814,-396.41630454,0.00033424,3]
[312119563,1705647045824,-500.0,0.00033424,3]
[312119564,1705647045833,-500.0,0.00033424,3]
[312119565,1705647045842,-500.0,0.00033424,3]
[312119566,1705647045852,-503.27987946,0.00033424,3]
[312119567,1705647045862,-500.0,0.00033424,3]
[312119568,1705647045872,-500.0,0.00033424,3]
[312119569,1705647045885,-500.0,0.00033424,3]
[312119570,1705647045894,-500.0,0.00033424,3]
[312119572,1705647045904,-500.0,0.00033424,3]
[312119574,1705647045913,-454.99446955,0.00033424,3]
[312119575,1705647045922,-500.0,0.00033424,3]
[312119576,1705647045933,-501.4837234,0.00033424,3]
[312119578,1705647045942,-504.62502569,0.00033424,3]
[312119579,1705647045951,-500.0,0.00033424,3]
[312119580,1705647045962,-500.0,0.00033424,3]
[312119581,1705647045972,-500.0,0.00033424,3]
[312119582,1705647045982,-501.94159678,0.00033424,3]
[312119583,1705647045991,-500.0,0.00033424,3]
[312119584,1705647046000,-500.0,0.00033424,3]
[312119585,1705647046009,-500.0,0.00033424,3]
[312119586,1705647046084,-500.0,0.00033424,3]
[312119587,1705647046094,-500.0,0.00033424,3]
[312119588,1705647046104,-500.0,0.00033424,3]
[312119589,1705647046113,-509.74467699,0.00033424,3]
[312119590,1705647046123,-2019.68,0.00033424,3]
[312119591,1705647046133,-500.0,0.00033424,3]
[312119592,1705647046142,-754.42,0.00033424,3]
[312119593,1705647046151,-500.0,0.00033424,3]
[312119595,1705647046161,-500.0,0.00033424,3]
[312119596,1705647046170,-500.0,0.00033424,3]
[312119598,1705647046180,-500.0,0.00033424,3]
[312119599,1705647046189,-500.87285916,0.00033424,3]
[312119600,1705647046198,-500.0,0.00033424,3]
[312119601,1705647046208,-1468.24,0.00033424,3]
[312119602,1705647046217,-830.03,0.00033424,3]
[312119603,1705647046226,-500.0,0.00033424,3]
[312119604,1705647046236,-504.10105123,0.00033424,3]
[312119605,1705647046245,-500.0,0.00033424,3]
[312119606,1705647046254,-500.0,0.00033424,3]
[312119607,1705647046263,-165.93033742,0.00033424,3]
[312119608,1705647046272,-500.0,0.00033424,3]
[312119609,1705647046282,-500.0,0.00033424,3]
[312119610,1705647046291,-501.21004478,0.00033424,3]
[312119612,1705647046300,-916.7,0.00033424,3]
[312119614,1705647046310,-500.0,0.00033424,3]
[312119615,1705647046319,-500.0,0.00033424,3]
[312119616,1705647046328,-500.0,0.00033424,3]
[312119617,1705647046337,-546.35,0.00033424,3]
[312119618,1705647046346,-500.0,0.00033424,3]
[312119619,1705647046356,-2693.85,0.00033424,3]
[312119620,1705647046365,-500.0,0.00033424,3]
[312119621,1705647046374,-1145.1,0.00033424,3]
[312119623,1705647046384,-1172.42,0.00033424,3]
[312119624,1705647046393,-500.0,0.00033424,3]
[312119625,1705647046404,-1066.31,0.00033424,3]
[312119626,1705647046413,-501.18705401,0.00033424,3]
[312119627,1705647046422,-500.0,0.00033424,3]
[312119628,1705647046431,-500.0,0.00033424,3]
[312119630,1705647046440,-8928.72,0.00033424,3]
[312119632,1705647046448,-13936.93,0.00033424,3]
[312119633,1705647046457,-500.0,0.00033424,3]
[312119635,1705647046466,-1497.72,0.00033424,3]
[312119636,1705647046476,-1325.8,0.00033424,3]
[312119637,1705647046485,-500.0,0.00033424,3]
[312119638,1705647046495,-500.0,0.00033424,3]
[312119639,1705647046504,-500.0,0.00033424,3]
[312119640,1705647046513,-500.0,0.00033424,3]
[312119641,1705647046522,-792.02,0.00033424,3]
[312119642,1705647046531,-4387.64,0.00033424,3]
[312119643,1705647046540,-507.79570843,0.00033424,3]
[312119644,1705647046550,-500.0,0.00033424,3]
[312119645,1705647046559,-500.0,0.00033424,3]
[312119646,1705647046568,-500.0,0.00033424,3]
[312119647,1705647046578,-500.0,0.00033424,3]
[312119648,1705647046587,-500.0,0.00033424,3]
[312119649,1705647046596,-595.1791592,0.00033424,3]
[312119650,1705647046606,-500.0,0.00033424,3]
[312119651,1705647046616,-612.47,0.00033424,3]
[312119652,1705647046625,-500.0,0.00033424,3]
[312119653,1705647046635,-500.0,0.00033424,3]
[312119654,1705647046645,-2579.58,0.00033424,3]
[312119655,1705647046654,-204.52259422,0.00033424,3]
[312119656,1705647046663,-500.0,0.00033424,3]
[312119657,1705647046672,-500.0,0.00033424,3]
[312119658,1705647046682,-500.0,0.00033424,3]
[312119659,1705647046691,-500.0,0.00033424,3]
[312119660,1705647046701,-500.0,0.00033424,3]
[312119661,1705647046710,-500.0,0.00033424,3]
[312119662,1705647046719,-500.0,0.00033424,3]
[312119663,1705647046729,-500.0,0.00033424,3]
[312119664,1705647046738,-502.80187139,0.00033424,3]
[312119665,1705647046747,-500.0,0.00033424,3]
[312119666,1705647046756,-554.58,0.00033424,3]
[312119667,1705647046766,-500.0,0.00033424,3]
[312119668,1705647046776,-2773.43,0.00033424,3]
[312119669,1705647046785,-500.0,0.00033424,3]
[312119670,1705647046794,-500.69125708,0.00033424,3]
[312119671,1705647046804,-500.0,0.00033424,3]
[312119672,1705647046813,-500.0,0.00033424,3]
[312119673,1705647046822,-500.0,0.00033424,3]
[312119674,1705647046831,-3105.32,0.00033424,3]
[312119675,1705647046840,-500.0,0.00033424,3]
[312119676,1705647046850,-500.0,0.00033424,3]
[312119677,1705647046859,-500.0,0.00033424,3]
[312119678,1705647046868,-500.0,0.00033424,3]
[312119679,1705647046877,-500.0,0.00033424,3]
[312119680,1705647046890,-265.14928865,0.00033424,3]
[312119681,1705647046899,-731.41,0.00033424,3]
[312119682,1705647046911,-500.0,0.00033424,2]
[312119683,1705647046920,-500.0,0.00033424,3]
[312119684,1705647046929,-500.0,0.00033424,3]
[312119685,1705647046938,-500.0,0.00033424,3]
[312119686,1705647046947,-195.7337572,0.00033424,3]
[312119687,1705647046957,-500.0,0.00033424,3]
[312119688,1705647046966,-500.0,0.00033424,3]
[312119689,1705647046975,-628.65487047,0.00033424,3]
[312119690,1705647046984,-500.0,0.00033424,3]
[312119691,1705647046993,-331.265426,0.00033424,2]
[312119692,1705647047002,-331.265426,0.00033424,2]
[312119693,1705647047011,-151.0,0.00033424,2]
[312119694,1705647047020,-151.0,0.00033424,2]
[312119695,1705647047030,-180.813176,0.00033424,2]
[312119696,1705647047039,-180.813176,0.00033424,2]
[312119697,1705647047048,-172.679815,0.00033425,2]
[312119698,1705647047058,-167.187099,0.00033425,2]
[312119699,1705647047068,-1000.0,0.00033601,2]
[312119700,1705647047077,-1000.0,0.0003361,2]
[312119701,1705647047085,-415.74255558,0.00033627,2]
[312119702,1705647047095,-502.4340676,0.00033698,3]
[312119703,1705647047104,-500.0,0.00033698,3]
[312119704,1705647047113,-504.32082899,0.00033698,3]
[312119705,1705647047122,-501.96821226,0.00033698,3]
[312119706,1705647047131,-500.0,0.00033698,3]
[312119707,1705647047140,-500.0,0.00033698,3]
[312119708,1705647047149,-500.0,0.00033698,3]
[312119709,1705647047161,-500.0,0.00033698,3]
[312119710,1705647047170,-768.28,0.00033698,3]
[312119711,1705647047180,-500.0,0.00033698,3]
[312119712,1705647047189,-500.0,0.00033698,3]
[312119713,1705647047199,-500.0,0.00033698,3]
[312119714,1705647047208,-502.52294116,0.00033698,2]
[312119715,1705647047218,-500.0,0.00033698,3]
[312119716,1705647047227,-500.0,0.00033698,3]
[312119717,1705647047236,-500.0,0.00033698,3]
[312119718,1705647047247,-500.0,0.00033698,3]
[312119719,1705647047257,-500.0,0.00033698,3]
[312119720,1705647047266,-506.1218786,0.00033698,3]
[312119721,1705647047275,-500.0,0.00033698,3]
[312119722,1705647047284,-500.0,0.00033698,3]
[312119723,1705647047294,-500.0,0.00033698,3]
[312119724,1705647047303,-176.37552319,0.00033698,3]
[312119725,1705647047313,-385.55693188,0.00033698,3]
[312119726,1705647047322,-500.0,0.00033698,3]
[312119727,1705647047331,-500.0,0.00033698,3]
[312119728,1705647047340,-500.0,0.00033698,3]
[312119729,1705647047349,-500.0,0.00033698,3]
[312119730,1705647047358,-500.0,0.00033698,3]
[312119731,1705647047368,-504.19286789,0.00033698,3]